[Event "European-ch Seniors 2018"]
[Site "Drammen"]
[Date "2018.08.08"]
[Round "5"]
[White "Ogaard, Leif"]
[Black "Gaprindashvili, Nona"]
[Result "1-0"]
[ECO "A44"]
[WhiteElo "2386"]
[BlackElo "2305"]
[Annotator "NA"]
[PlyCount "28"]
[EventDate "2018.08.04"]
[EventType "swiss"]
[EventCountry "NOR"]
[SourceTitle "playchess.com"]
[Source "ChessBase"]
[SourceQuality "1"]
[TimeControl "40/5400+30:1800+30"]

1. d4 {[%emt 0:00:00]} c5 {[%emt 0:00:00]} 2. d5 {[%emt 0:00:24]} e5 {[%emt 0:00:00]} 3. e4 {[%emt 0:00:39]} d6 {[%emt 0:00:00]} 4. Nc3 {[%emt 0:00:35]} g6 {[%emt 0:00:13]} 5. f4 {[%emt 0:01:32]} f6 {[%emt 0:01:44]} 6. Nf3 {[%emt 0:02:50]} exf4 {[%emt 0:03:31]} 7. Bxf4 {[%emt 0:00:56]} Nh6 {[%emt 0:00:09]} 8. Bb5+ {[%emt 0:06:37]} Nd7 {[%emt 0:00:47]} 9. e5 {[%emt 0:13:53]} dxe5 {[%emt 0:01:34]} 10. Nxe5 {[%emt 0:00:43]} a6 {[%emt 0:27:41]} 11. Qe2 {[%emt 0:15:44]} fxe5 {[%emt 0:05:26]} 12. Bxe5 {[%emt 0:00:51]} axb5 {[%emt 0:02:29]} 13. Bf6+ {[%emt 0:06:12]} Be7 {[%emt 0:00:02]} 14. Bxh8 {[%emt 0:00:11]} Kf7 {[%emt 0:00:20]} 1-0

[Event "European-ch Seniors 2018"]
[Site "Drammen"]
[Date "2018.08.08"]
[Round "5"]
[White "Renman, Nils-Gustaf"]
[Black "Karason, Askell Orn"]
[Result "1/2-1/2"]
[ECO "E11"]
[WhiteElo "2348"]
[BlackElo "2217"]
[Annotator "NA"]
[PlyCount "62"]
[EventDate "2018.08.04"]
[EventType "swiss"]
[EventCountry "NOR"]
[SourceTitle "playchess.com"]
[Source "ChessBase"]
[SourceQuality "1"]
[TimeControl "40/5400+30:1800+30"]

1. d4 {[%emt 0:00:00]} Nf6 {[%emt 0:00:00]} 2. Nf3 {[%emt 0:00:00]} e6 {[%emt 0:00:01]} 3. c4 {[%emt 0:00:00]} Bb4+ {[%emt 0:00:09]} 4. Bd2 {[%emt 0:00:00]} Bxd2+ {[%emt 0:00:18]} 5. Qxd2 {[%emt 0:00:13]} d5 {[%emt 0:00:09]} 6. Nc3 {[%emt 0:00:38]} O-O {[%emt 0:01:01]} 7. e3 {[%emt 0:00:49]} Nbd7 {[%emt 0:01:40]} 8. cxd5 {[%emt 0:06:28]} exd5 {[%emt 0:00:23]} 9. Qc2 {[%emt 0:00:13]} Qe7 {[%emt 0:08:29]} 10. Be2 {[%emt 0:08:11]} c6 {[%emt 0:00:55]} 11. O-O {[%emt 0:00:10]} Re8 {[%emt 0:00:39]} 12. Rab1 {[%emt 0:07:27]} Nf8 {[%emt 0:03:01]} 13. b4 {[%emt 0:01:33]} Bg4 {[%emt 0:01:17]} 14. b5 {[%emt 0:07:14]} c5 {[%emt 0:00:51]} 15. dxc5 {[%emt 0:00:05]} Qxc5 {[%emt 0:00:06]} 16. Rbc1 {[%emt 0:00:29]} Rac8 {[%emt 0:12:12]} 17. Qb2 {[%emt 0:00:25]} Qe7 {[%emt 0:08:16]} 18. Rfd1 {[%emt 0:03:32]} Rc5 {[%emt 0:08:31]} 19. h3 {[%emt 0:02:03]} Bxf3 {[%emt 0:09:31]} 20. Bxf3 {[%emt 0:00:10]} Qe5 {[%emt 0:00:04]} 21. Qa3 {[%emt 0:06:47]} b6 {[%emt 0:04:55]} 22. Ne2 {[%emt 0:09:01]} Rxb5 {[%emt 0:02:20]} 23. Qxa7 {[%emt 0:01:09]} Ne6 {[%emt 0:05:46]} 24. Qa4 {[%emt 0:15:15]} Ra5 {[%emt 0:02:04]} 25. Qb3 {[%emt 0:03:26]} g6 {[%emt 0:04:54]} 26. Qxb6 {[%emt 0:02:35]} Rxa2 {[%emt 0:00:10]} 27. Nc3 {[%emt 0:00:10]} Rb8 {[%emt 0:04:27]} 28. Qc6 {[%emt 0:05:39]} Nd8 {[%emt 0:04:09]} 29. Qc5 {[%emt 0:01:03]} Ne6 {[%emt 0:00:32]} 30. Qe7 {[%emt 0:09:59]} Ra5 {[%emt 0:00:52]} 31. h4 {[%emt 0:05:21]} Kg7 {[%emt 0:02:27]} 1/2-1/2

[Event "European-ch Seniors 2018"]
[Site "Drammen"]
[Date "2018.08.08"]
[Round "5"]
[White "Stebbings, Anthony"]
[Black "Khmiadashvili, Tamar"]
[Result "1-0"]
[ECO "E44"]
[WhiteElo "2265"]
[BlackElo "1969"]
[Annotator "NA"]
[PlyCount "87"]
[EventDate "2018.08.04"]
[EventType "swiss"]
[EventCountry "NOR"]
[SourceTitle "playchess.com"]
[Source "ChessBase"]
[SourceQuality "1"]
[TimeControl "40/5400+30:1800+30"]

1. d4 {[%emt 0:00:00]} Nf6 {[%emt 0:00:00]} 2. c4 {[%emt 0:00:00]} e6 {[%emt 0:00:04]} 3. Nc3 {[%emt 0:00:00]} Bb4 {[%emt 0:00:37]} 4. e3 {[%emt 0:00:00]} b6 {[%emt 0:00:36]} 5. Nge2 {[%emt 0:00:16]} Bb7 {[%emt 0:00:12]} 6. a3 {[%emt 0:00:14]} Be7 {[%emt 0:00:33]} 7. d5 {[%emt 0:00:27]} e5 {[%emt 0:01:58]} 8. Ng3 {[%emt 0:02:30]} g6 {[%emt 0:01:11]} 9. Bd3 {[%emt 0:03:40]} d6 {[%emt 0:02:05]} 10. O-O {[%emt 0:01:06]} Nbd7 {[%emt 0:02:10]} 11. e4 {[%emt 0:03:02]} h5 {[%emt 0:01:01]} 12. f3 {[%emt 0:03:45]} h4 {[%emt 0:02:12]} 13. Nge2 {[%emt 0:01:18]} Nh5 {[%emt 0:01:09]} 14. Be3 {[%emt 0:01:12]} g5 {[%emt 0:10:55]} 15. b4 {[%emt 0:05:41]} Nf4 {[%emt 0:01:00]} 16. Nc1 {[%emt 0:08:44]} Bc8 {[%emt 0:02:09]} 17. Nb3 {[%emt 0:03:48]} Nxd3 {[%emt 0:20:19]} 18. Qxd3 {[%emt 0:00:05]} Rg8 {[%emt 0:04:12]} 19. h3 {[%emt 0:08:39]} Kf8 {[%emt 0:06:54]} 20. Rfc1 {[%emt 0:01:38]} a5 21. bxa5 {[%emt 0:02:45]} bxa5 {[%emt 0:12:29]} 22. a4 {[%emt 0:12:28]} Nc5 {[%emt 0:07:59]} 23. Nxc5 {[%emt 0:00:16]} dxc5 {[%emt 0:00:04]} 24. Rab1 {[%emt 0:03:35]} Kg7 {[%emt 0:02:24]} 25. Qd2 {[%emt 0:02:14]} f6 {[%emt 0:09:41]} 26. Qf2 {[%emt 0:02:02]} Ba6 {[%emt 0:02:12]} 27. Nb5 {[%emt 0:00:53]} f5 {[%emt 0:02:15]} 28. exf5 {[%emt 0:05:08]} Rf8 {[%emt 0:00:36]} 29. Bxc5 {[%emt 0:02:28]} Rxf5 {[%emt 0:00:10]} 30. Be3 {[%emt 0:02:12]} Qd7 {[%emt 0:02:48]} 31. Qc2 {[%emt 0:00:59]} Raf8 {[%emt 0:00:32]} 32. Qe4 {[%emt 0:01:56]} Bb4 {[%emt 0:03:30]} 33. Rc2 {[%emt 0:05:29]} Qe7 {[%emt 0:00:42]} 34. c5 {[%emt 0:00:48]} Qd7 {[%emt 0:00:24]} 35. Rd1 {[%emt 0:01:13]} Bxb5 {[%emt 0:00:16]} 36. axb5 {[%emt 0:00:04]} Qxb5 {[%emt 0:00:05]} 37. d6 {[%emt 0:00:26]} cxd6 {[%emt 0:01:40]} 38. cxd6 {[%emt 0:00:16]} Rf4 {[%emt 0:01:08]} 39. Bxf4 {[%emt 0:02:20]} Rxf4 {[%emt 0:00:03]} 40. Rc7+ {[%emt 0:00:00]} Kf6 {[%emt 0:00:00]} 41. Qh7 {[%emt 0:04:33]} Qe8 {[%emt 0:07:01]} 42. Qg7+ {[%emt 0:00:28]} Ke6 {[%emt 0:00:39]} 43. Re7+ {[%emt 0:00:09]} Qxe7 {[%emt 0:00:18]} 44. Qxe7+ {[%emt 0:00:08]} 1-0

[Event "European-ch Seniors 2018"]
[Site "Drammen"]
[Date "2018.08.08"]
[Round "5"]
[White "Barle, Janez"]
[Black "Vorotnikov, Vladislav V"]
[Result "1/2-1/2"]
[ECO "C41"]
[WhiteElo "2249"]
[BlackElo "2445"]
[Annotator "NA"]
[PlyCount "26"]
[EventDate "2018.08.04"]
[EventType "swiss"]
[EventCountry "NOR"]
[SourceTitle "playchess.com"]
[Source "ChessBase"]
[SourceQuality "1"]
[TimeControl "40/5400+30:1800+30"]

1. e4 {[%emt 0:00:00]} e5 {[%emt 0:00:00]} 2. Nf3 {[%emt 0:00:20]} d6 {[%emt 0:00:46]} 3. d4 {[%emt 0:00:37]} exd4 {[%emt 0:00:12]} 4. Nxd4 {[%emt 0:00:51]} Nf6 {[%emt 0:00:08]} 5. Nc3 {[%emt 0:00:10]} g6 {[%emt 0:00:51]} 6. g3 {[%emt 0:10:30]} Bg7 {[%emt 0:01:56]} 7. Bg2 {[%emt 0:00:26]} O-O {[%emt 0:00:19]} 8. O-O {[%emt 0:00:09]} Re8 {[%emt 0:04:36]} 9. Re1 {[%emt 0:06:27]} Bg4 {[%emt 0:03:30]} 10. f3 {[%emt 0:05:36]} Bd7 {[%emt 0:00:19]} 11. Be3 {[%emt 0:03:56]} Nc6 {[%emt 0:03:19]} 12. Qd2 {[%emt 0:06:01]} a6 {[%emt 0:16:56]} 13. Rad1 {[%emt 0:01:28]} b5 {[%emt 0:06:10]} 1/2-1/2

[Event "European-ch Seniors 2018"]
[Site "Drammen"]
[Date "2018.08.08"]
[Round "5"]
[White "Furman, Boris"]
[Black "Lederman, Leon S"]
[Result "1/2-1/2"]
[ECO "D30"]
[WhiteElo "2242"]
[BlackElo "2245"]
[Annotator "NA"]
[PlyCount "58"]
[EventDate "2018.08.04"]
[EventType "swiss"]
[EventCountry "NOR"]
[SourceTitle "playchess.com"]
[Source "ChessBase"]
[SourceQuality "1"]
[TimeControl "40/5400+30:1800+30"]

1. d4 {[%emt 0:00:00]} d5 {[%emt 0:00:00]} 2. c4 {[%emt 0:00:00]} e6 {[%emt 0:00:00]} 3. cxd5 {[%emt 0:00:00]} exd5 {[%emt 0:00:00]} 4. Nc3 {[%emt 0:00:00]} c6 {[%emt 0:00:27]} 5. Qc2 {[%emt 0:00:07]} Bd6 {[%emt 0:00:52]} 6. Nf3 {[%emt 0:00:12]} h6 {[%emt 0:00:48]} 7. g3 {[%emt 0:07:47]} Nf6 {[%emt 0:00:35]} 8. Bf4 {[%emt 0:00:20]} O-O {[%emt 0:00:30]} 9. Bxd6 {[%emt 0:01:10]} Qxd6 {[%emt 0:00:05]} 10. Bg2 {[%emt 0:00:32]} Re8 {[%emt 0:00:54]} 11. O-O {[%emt 0:00:32]} Nbd7 {[%emt 0:01:54]} 12. Rfe1 {[%emt 0:08:04]} Nf8 {[%emt 0:01:17]} 13. Rad1 {[%emt 0:03:29]} Be6 {[%emt 0:04:13]} 14. Ne5 {[%emt 0:06:31]} Ng4 {[%emt 0:01:17]} 15. Nxg4 {[%emt 0:00:38]} Bxg4 {[%emt 0:00:03]} 16. f3 {[%emt 0:00:41]} Bh5 {[%emt 0:00:35]} 17. e3 {[%emt 0:08:03]} Re7 {[%emt 0:09:13]} 18. Qf2 {[%emt 0:02:15]} f5 {[%emt 0:08:10]} 19. Ne2 {[%emt 0:03:15]} Rae8 {[%emt 0:03:34]} 20. Nf4 {[%emt 0:00:30]} Bf7 {[%emt 0:00:07]} 21. Nd3 {[%emt 0:00:23]} Nd7 {[%emt 0:00:04]} 22. f4 {[%emt 0:01:21]} Nf6 {[%emt 0:09:56]} 23. Ne5 {[%emt 0:02:38]} Rc8 {[%emt 0:01:21]} 24. Qc2 {[%emt 0:02:20]} Be6 {[%emt 0:00:37]} 25. Qa4 {[%emt 0:03:26]} b6 {[%emt 0:06:45]} 26. b4 {[%emt 0:03:41]} c5 {[%emt 0:03:27]} 27. bxc5 {[%emt 0:00:45]} bxc5 {[%emt 0:00:01]} 28. Qa3 {[%emt 0:00:46]} Rec7 {[%emt 0:04:16]} 29. Rc1 {[%emt 0:00:44]} Qf8 {[%emt 0:02:09]} 1/2-1/2

[Event "European-ch Seniors 2018"]
[Site "Drammen"]
[Date "2018.08.08"]
[Round "5"]
[White "Moen, Ole Christian"]
[Black "Bogdanov, Valentin"]
[Result "1/2-1/2"]
[ECO "B27"]
[WhiteElo "2228"]
[BlackElo "2356"]
[Annotator "NA"]
[PlyCount "99"]
[EventDate "2018.08.04"]
[EventType "swiss"]
[EventCountry "NOR"]
[SourceTitle "playchess.com"]
[Source "ChessBase"]
[SourceQuality "1"]
[TimeControl "40/5400+30:1800+30"]

1. e4 {[%emt 0:00:00]} c5 {[%emt 0:00:00]} 2. Nf3 {[%emt 0:00:00]} g6 {[%emt 0:00:00]} 3. g3 {[%emt 0:02:16]} Bg7 {[%emt 0:00:40]} 4. Bg2 {[%emt 0:00:06]} Nc6 {[%emt 0:00:10]} 5. O-O {[%emt 0:00:08]} e6 {[%emt 0:01:12]} 6. Re1 {[%emt 0:02:53]} Nge7 {[%emt 0:01:38]} 7. d3 {[%emt 0:03:59]} b6 {[%emt 0:08:53]} 8. Nbd2 {[%emt 0:00:49]} Bb7 {[%emt 0:01:03]} 9. Nc4 {[%emt 0:02:18]} d5 {[%emt 0:00:55]} 10. exd5 {[%emt 0:00:35]} Nxd5 {[%emt 0:00:33]} 11. Nfe5 {[%emt 0:01:07]} Nxe5 {[%emt 0:06:27]} 12. Nxe5 {[%emt 0:00:14]} Qc7 {[%emt 0:00:54]} 13. c4 {[%emt 0:07:24]} Bxe5 {[%emt 0:02:24]} 14. cxd5 {[%emt 0:01:47]} O-O {[%emt 0:00:37]} 15. dxe6 {[%emt 0:13:02]} Bxg2 {[%emt 0:02:47]} 16. Kxg2 {[%emt 0:00:16]} fxe6 {[%emt 0:03:52]} 17. Qe2 {[%emt 0:07:20]} Qc6+ {[%emt 0:02:30]} 18. f3 {[%emt 0:01:40]} Bg7 {[%emt 0:02:46]} 19. Qxe6+ {[%emt 0:00:14]} Qxe6 {[%emt 0:00:04]} 20. Rxe6 {[%emt 0:00:10]} Rad8 {[%emt 0:00:42]} 21. Re3 {[%emt 0:00:36]} Rd7 {[%emt 0:00:47]} 22. Rb1 {[%emt 0:05:21]} Rfd8 {[%emt 0:07:14]} 23. Kf1 {[%emt 0:01:51]} Rxd3 {[%emt 0:04:43]} 24. Rxd3 {[%emt 0:00:40]} Rxd3 {[%emt 0:00:01]} 25. Ke2 {[%emt 0:00:06]} Rd7 {[%emt 0:07:10]} 26. b3 {[%emt 0:00:54]} Re7+ {[%emt 0:03:07]} 27. Kd2 {[%emt 0:00:29]} Bh6+ {[%emt 0:00:54]} 28. Kd1 {[%emt 0:01:46]} Bxc1 {[%emt 0:05:53]} 29. Rxc1 {[%emt 0:01:06]} Re3 {[%emt 0:00:13]} 30. f4 {[%emt 0:00:12]} Kf7 {[%emt 0:00:41]} 31. Kd2 {[%emt 0:00:28]} Re4 {[%emt 0:03:30]} 32. Rc4 {[%emt 0:00:08]} Re7 {[%emt 0:00:24]} 33. Rc3 {[%emt 0:01:08]} Kf6 {[%emt 0:02:02]} 34. Re3 {[%emt 0:01:35]} Rd7+ {[%emt 0:04:13]} 35. Rd3 {[%emt 0:02:49]} Re7 {[%emt 0:01:52]} 36. Re3 {[%emt 0:00:49]} Re6 {[%emt 0:02:14]} 37. Kd3 {[%emt 0:01:36]} Rd6+ {[%emt 0:00:46]} 38. Kc3 {[%emt 0:00:09]} h5 {[%emt 0:01:29]} 39. a4 {[%emt 0:12:28]} h4 {[%emt 0:07:08]} 40. a5 {[%emt 0:00:00]} bxa5 {[%emt 0:00:00]} 41. Re5 {[%emt 0:04:13]} Ra6 {[%emt 0:07:58]} 42. Rxc5 {[%emt 0:08:56]} a4 {[%emt 0:01:17]} 43. b4 {[%emt 0:00:30]} a3 {[%emt 0:02:03]} 44. Ra5 {[%emt 0:01:15]} Rxa5 {[%emt 0:00:12]} 45. bxa5 {[%emt 0:00:11]} hxg3 {[%emt 0:00:04]} 46. hxg3 {[%emt 0:00:25]} Kf5 {[%emt 0:00:09]} 47. Kb3 {[%emt 0:00:20]} Kg4 {[%emt 0:00:09]} 48. Kxa3 {[%emt 0:00:16]} Kxg3 {[%emt 0:00:02]} 49. Kb4 {[%emt 0:00:21]} Kxf4 {[%emt 0:00:38]} 50. Kb5 {[%emt 0:00:02]} 1/2-1/2

[Event "European-ch Seniors 2018"]
[Site "Drammen"]
[Date "2018.08.08"]
[Round "5"]
[White "Burchardt, Brigitte"]
[Black "Fridthjofsdottir, Sigurl  Regina"]
[Result "1-0"]
[ECO "B01"]
[WhiteElo "2189"]
[BlackElo "1715"]
[Annotator "NA"]
[PlyCount "79"]
[EventDate "2018.08.04"]
[EventType "swiss"]
[EventCountry "NOR"]
[SourceTitle "playchess.com"]
[Source "ChessBase"]
[SourceQuality "1"]
[TimeControl "40/5400+30:1800+30"]

1. e4 {[%emt 0:00:00]} d5 {[%emt 0:00:00]} 2. exd5 {[%emt 0:00:00]} Qxd5 {[%emt 0:00:00]} 3. Nc3 {[%emt 0:00:00]} Qd6 {[%emt 0:00:00]} 4. Nf3 {[%emt 0:04:00]} c6 {[%emt 0:00:53]} 5. Bc4 {[%emt 0:02:15]} Nf6 {[%emt 0:01:56]} 6. Qe2 {[%emt 0:08:11]} Bf5 {[%emt 0:02:45]} 7. d3 {[%emt 0:04:47]} e6 {[%emt 0:00:33]} 8. Ne4 {[%emt 0:07:22]} Nxe4 {[%emt 0:11:02]} 9. dxe4 {[%emt 0:00:07]} Bg4 {[%emt 0:01:03]} 10. Be3 {[%emt 0:10:15]} Bxf3 {[%emt 0:06:20]} 11. gxf3 {[%emt 0:00:05]} Nd7 {[%emt 0:04:15]} 12. f4 {[%emt 0:06:19]} Nb6 {[%emt 0:06:48]} 13. Bd3 {[%emt 0:02:32]} e5 {[%emt 0:14:26]} 14. fxe5 {[%emt 0:03:51]} Qxe5 {[%emt 0:00:12]} 15. c3 {[%emt 0:00:41]} Rd8 {[%emt 0:13:04]} 16. O-O-O {[%emt 0:06:20]} Bc5 {[%emt 0:05:50]} 17. f4 {[%emt 0:01:15]} Bxe3+ {[%emt 0:00:58]} 18. Qxe3 {[%emt 0:00:07]} Qe7 {[%emt 0:03:45]} 19. Rhg1 {[%emt 0:03:10]} f6 {[%emt 0:05:30]} 20. Rg3 {[%emt 0:05:28]} Rd7 {[%emt 0:07:14]} 21. Rdg1 {[%emt 0:00:46]} g6 {[%emt 0:00:38]} 22. h4 {[%emt 0:02:08]} Qf7 {[%emt 0:02:21]} 23. e5 {[%emt 0:07:57]} Re7 {[%emt 0:02:53]} 24. h5 {[%emt 0:05:21]} Qxa2 {[%emt 0:03:59]} 25. Bb1 {[%emt 0:02:52]} Qb3 {[%emt 0:01:09]} 26. hxg6 {[%emt 0:02:26]} Nc4 {[%emt 0:00:28]} 27. Qf2 {[%emt 0:00:23]} hxg6 {[%emt 0:00:40]} 28. exf6 {[%emt 0:01:51]} Rd7 {[%emt 0:00:53]} 29. Bxg6+ {[%emt 0:01:43]} Kd8 {[%emt 0:00:15]} 30. Bd3 {[%emt 0:01:07]} Nxb2 {[%emt 0:03:30]} 31. Qxb2 {[%emt 0:00:19]} Qxb2+ {[%emt 0:00:14]} 32. Kxb2 {[%emt 0:00:09]} Rh2+ {[%emt 0:00:21]} 33. Kb3 {[%emt 0:00:44]} Rd2 {[%emt 0:00:33]} 34. Bf5 {[%emt 0:00:36]} R7d5 {[%emt 0:00:41]} 35. Be6 {[%emt 0:02:31]} Rb5+ {[%emt 0:01:04]} 36. Kc4 {[%emt 0:00:21]} Ra5 {[%emt 0:00:40]} 37. Rd3+ {[%emt 0:00:16]} Rxd3 {[%emt 0:00:10]} 38. Kxd3 {[%emt 0:00:05]} c5 {[%emt 0:00:48]} 39. Rg8+ {[%emt 0:00:36]} Kc7 {[%emt 0:00:06]} 40. f7 {[%emt 0:00:00]} 1-0

[Event "European-ch Seniors 2018"]
[Site "Drammen"]
[Date "2018.08.08"]
[Round "5"]
[White "Gruzmann, Boris"]
[Black "Svensson, Leif"]
[Result "1-0"]
[ECO "C42"]
[WhiteElo "2183"]
[BlackElo "2052"]
[Annotator "NA"]
[PlyCount "107"]
[EventDate "2018.08.04"]
[EventType "swiss"]
[EventCountry "NOR"]
[SourceTitle "playchess.com"]
[Source "ChessBase"]
[SourceQuality "1"]
[TimeControl "40/5400+30:1800+30"]

1. e4 {[%emt 0:00:00]} e5 {[%emt 0:00:00]} 2. Nf3 {[%emt 0:00:00]} Nf6 {[%emt 0:00:00]} 3. Nxe5 {[%emt 0:00:21]} Nxe4 {[%emt 0:00:07]} 4. Qe2 {[%emt 0:05:17]} Qe7 {[%emt 0:00:10]} 5. Qxe4 {[%emt 0:01:04]} d6 {[%emt 0:00:13]} 6. d4 {[%emt 0:02:03]} dxe5 {[%emt 0:00:06]} 7. dxe5 {[%emt 0:01:44]} Nd7 {[%emt 0:02:51]} 8. f4 {[%emt 0:03:29]} Nc5 {[%emt 0:00:30]} 9. Qe2 {[%emt 0:05:10]} h5 {[%emt 0:05:03]} 10. Be3 {[%emt 0:02:53]} Bg4 {[%emt 0:05:19]} 11. Bxc5 {[%emt 0:02:27]} Qxc5 {[%emt 0:05:09]} 12. Qb5+ {[%emt 0:00:12]} c6 {[%emt 0:00:24]} 13. Qxc5 {[%emt 0:00:07]} Bxc5 {[%emt 0:00:05]} 14. h3 {[%emt 0:06:30]} Be6 {[%emt 0:01:42]} 15. Nc3 {[%emt 0:20:54]} Be3 {[%emt 0:11:35]} 16. g3 {[%emt 0:04:30]} g5 {[%emt 0:00:50]} 17. fxg5 {[%emt 0:05:50]} Bxg5 {[%emt 0:00:10]} 18. Rd1 {[%emt 0:04:53]} Ke7 {[%emt 0:01:19]} 19. Ne4 {[%emt 0:02:31]} Be3 {[%emt 0:04:42]} 20. c4 {[%emt 0:04:36]} h4 {[%emt 0:09:34]} 21. Rd3 {[%emt 0:04:10]} Bb6 {[%emt 0:04:00]} 22. Rf3 {[%emt 0:02:38]} hxg3 {[%emt 0:03:50]} 23. Nxg3 {[%emt 0:02:05]} Ba5+ {[%emt 0:07:55]} 24. Kf2 {[%emt 0:01:31]} Bb6+ {[%emt 0:09:31]} 25. Ke1 {[%emt 0:00:10]} Rag8 {[%emt 0:01:01]} 26. Nf5+ {[%emt 0:03:24]} Kf8 {[%emt 0:02:27]} 27. Rh2 {[%emt 0:02:02]} Rh5 {[%emt 0:01:40]} 28. Bd3 {[%emt 0:01:29]} Rg1+ {[%emt 0:10:05]} 29. Kd2 {[%emt 0:00:33]} Rgg5 {[%emt 0:00:34]} 30. Nd6 {[%emt 0:01:28]} Rxe5 {[%emt 0:02:42]} 31. Nxf7 {[%emt 0:01:30]} Re3 {[%emt 0:04:29]} 32. Rxe3 {[%emt 0:01:27]} Bxe3+ {[%emt 0:00:10]} 33. Kxe3 {[%emt 0:00:02]} Kxf7 {[%emt 0:00:17]} 34. h4 {[%emt 0:00:23]} Kf6 {[%emt 0:00:41]} 35. Be2 {[%emt 0:02:26]} Re5+ {[%emt 0:00:21]} 36. Kd2 {[%emt 0:01:45]} Kg6 {[%emt 0:04:53]} 37. Rf2 {[%emt 0:00:50]} Kg7 {[%emt 0:01:46]} 38. Rf4 {[%emt 0:00:12]} b5 {[%emt 0:01:02]} 39. b3 {[%emt 0:02:04]} a5 {[%emt 0:01:10]} 40. cxb5 {[%emt 0:00:00]} cxb5 {[%emt 0:00:00]} 41. Bg4 {[%emt 0:04:26]} Bf7 {[%emt 0:02:34]} 42. Rd4 {[%emt 0:04:36]} a4 {[%emt 0:02:25]} 43. bxa4 {[%emt 0:01:03]} Bxa2 {[%emt 0:00:22]} 44. a5 {[%emt 0:05:06]} b4 {[%emt 0:00:18]} 45. a6 {[%emt 0:03:15]} Ra5 {[%emt 0:06:21]} 46. Be2 {[%emt 0:00:21]} b3 {[%emt 0:07:05]} 47. Rb4 {[%emt 0:02:35]} Rd5+ {[%emt 0:00:09]} 48. Kc3 {[%emt 0:02:10]} Rc5+ {[%emt 0:07:19]} 49. Kd4 {[%emt 0:01:50]} Ra5 {[%emt 0:01:51]} 50. Bb5 {[%emt 0:03:20]} Kh6 {[%emt 0:03:05]} 51. Kc5 {[%emt 0:00:34]} Ra3 {[%emt 0:03:57]} 52. Kb6 {[%emt 0:01:00]} Bb1 {[%emt 0:00:49]} 53. a7 {[%emt 0:02:07]} Bf5 {[%emt 0:00:39]} 54. Ba6 {[%emt 0:01:52]} 1-0

[Event "European-ch Seniors 2018"]
[Site "Drammen"]
[Date "2018.08.08"]
[Round "5"]
[White "Fatalibekova, Elena"]
[Black "Taksrud, Vidar"]
[Result "1-0"]
[ECO "A05"]
[WhiteElo "2181"]
[BlackElo "2047"]
[Annotator "NA"]
[PlyCount "53"]
[EventDate "2018.08.04"]
[EventType "swiss"]
[EventCountry "NOR"]
[SourceTitle "playchess.com"]
[Source "ChessBase"]
[SourceQuality "1"]
[TimeControl "40/5400+30:1800+30"]

1. Nf3 {[%emt 0:00:00]} Nf6 {[%emt 0:00:00]} 2. c4 {[%emt 0:00:00]} e6 {[%emt 0:00:12]} 3. e3 {[%emt 0:00:34]} d5 {[%emt 0:00:52]} 4. d4 {[%emt 0:00:43]} Bb4+ {[%emt 0:02:06]} 5. Nbd2 {[%emt 0:01:16]} c6 {[%emt 0:00:37]} 6. Bd3 {[%emt 0:00:30]} O-O {[%emt 0:01:54]} 7. O-O {[%emt 0:00:04]} Nbd7 {[%emt 0:01:55]} 8. a3 {[%emt 0:02:10]} Bd6 {[%emt 0:01:20]} 9. e4 {[%emt 0:00:16]} dxe4 {[%emt 0:02:39]} 10. Nxe4 {[%emt 0:00:03]} Nxe4 {[%emt 0:00:16]} 11. Bxe4 {[%emt 0:00:02]} c5 {[%emt 0:03:31]} 12. Bc2 {[%emt 0:10:44]} cxd4 {[%emt 0:02:27]} 13. Qxd4 {[%emt 0:00:46]} Bc5 {[%emt 0:02:50]} 14. Qe4 {[%emt 0:05:18]} g6 {[%emt 0:10:01]} 15. Bh6 {[%emt 0:01:20]} Re8 {[%emt 0:00:46]} 16. Rad1 {[%emt 0:01:18]} f5 {[%emt 0:02:34]} 17. Qe2 {[%emt 0:03:25]} Qf6 {[%emt 0:02:18]} 18. Ba4 {[%emt 0:00:46]} Qe7 {[%emt 0:02:46]} 19. Bg5 {[%emt 0:04:18]} Qg7 {[%emt 0:08:09]} 20. Qd2 {[%emt 0:00:32]} h6 {[%emt 0:04:13]} 21. Bxh6 {[%emt 0:00:25]} Qh7 {[%emt 0:00:39]} 22. Bg5 {[%emt 0:01:40]} Be7 {[%emt 0:02:36]} 23. Bxd7 {[%emt 0:08:34]} Rd8 {[%emt 0:00:14]} 24. Qe2 {[%emt 0:05:23]} Rxd7 {[%emt 0:01:00]} 25. Qxe6+ {[%emt 0:00:03]} Qf7 {[%emt 0:00:33]} 26. Qxf7+ {[%emt 0:00:44]} Kxf7 {[%emt 0:00:10]} 27. Ne5+ {[%emt 0:00:03]} 1-0

[Event "European-ch Seniors 2018"]
[Site "Drammen"]
[Date "2018.08.08"]
[Round "5"]
[White "Kolbak, Jens"]
[Black "Werner, Clemens"]
[Result "1/2-1/2"]
[ECO "D78"]
[WhiteElo "2181"]
[BlackElo "2258"]
[Annotator "NA"]
[PlyCount "53"]
[EventDate "2018.08.04"]
[EventType "swiss"]
[EventCountry "NOR"]
[SourceTitle "playchess.com"]
[Source "ChessBase"]
[SourceQuality "1"]
[TimeControl "40/5400+30:1800+30"]

1. Nf3 {[%emt 0:00:00]} Nf6 {[%emt 0:01:30]} 2. d4 {[%emt 0:00:00]} g6 {[%emt 0:01:21]} 3. g3 {[%emt 0:00:14]} d5 {[%emt 0:00:31]} 4. Bg2 {[%emt 0:01:06]} Bg7 {[%emt 0:00:03]} 5. O-O {[%emt 0:00:11]} O-O {[%emt 0:00:03]} 6. c4 {[%emt 0:00:39]} c6 {[%emt 0:00:11]} 7. b3 {[%emt 0:04:04]} Bf5 {[%emt 0:06:03]} 8. Bb2 {[%emt 0:00:49]} Nbd7 {[%emt 0:04:39]} 9. Nbd2 {[%emt 0:05:22]} Qa5 {[%emt 0:08:16]} 10. a3 {[%emt 0:03:59]} Qa6 {[%emt 0:05:25]} 11. Rc1 {[%emt 0:12:48]} Ne4 {[%emt 0:09:36]} 12. Nh4 {[%emt 0:07:23]} Nxd2 {[%emt 0:00:52]} 13. Qxd2 {[%emt 0:00:08]} Be6 {[%emt 0:00:13]} 14. c5 {[%emt 0:04:30]} Rfc8 {[%emt 0:06:57]} 15. Nf3 {[%emt 0:09:32]} h6 {[%emt 0:07:10]} 16. Rfe1 {[%emt 0:01:16]} b6 {[%emt 0:00:59]} 17. Bf1 {[%emt 0:04:58]} Qb7 {[%emt 0:00:17]} 18. b4 {[%emt 0:02:13]} a5 {[%emt 0:02:28]} 19. Ne5 {[%emt 0:05:41]} Nxe5 {[%emt 0:05:04]} 20. dxe5 {[%emt 0:00:08]} axb4 {[%emt 0:02:10]} 21. axb4 {[%emt 0:00:35]} Ra2 {[%emt 0:01:14]} 22. Ra1 {[%emt 0:00:47]} Rca8 {[%emt 0:01:32]} 23. Rxa2 {[%emt 0:01:03]} Rxa2 {[%emt 0:00:05]} 24. Ra1 {[%emt 0:00:06]} Rxa1 {[%emt 0:06:01]} 25. Bxa1 {[%emt 0:00:06]} Qa7 {[%emt 0:00:22]} 26. Bd4 {[%emt 0:01:16]} b5 {[%emt 0:00:11]} 27. h3 {[%emt 0:04:05]} 1/2-1/2